[Event "Mitropa Cup Open 2022"]
[Site "Corte"]
[Date "2022.05.05"]
[Round "6.6"]
[White "Maurizzi, Marc`Andria"]
[Black "Sonis, Francesco"]
[Result "1-0"]
[ECO "C49"]
[WhiteElo "2483"]
[BlackElo "2547"]
[Annotator "TA"]
[PlyCount "157"]
[EventDate "2022.04.30"]
[EventType "team-tourn"]
[EventCountry "FRA"]
[SourceTitle "playchess.com"]
[Source "ChessBase"]
[SourceQuality "1"]
[WhiteTeam "France"]
[BlackTeam "Italy"]
[BlackTeamCountry "ITA"]
[TimeControl "40/5400+30:1800+30"]

{[%evp 16,157,6,9,14,18,43,27,47,26,47,35,57,56,65,69,72,70,77,71,80,51,54,51,59,49,77,66,61,67,59,51,65,61,66,-40,114,111,100,28,136,93,141,150,150,147,258,246,234,87,132,122,131,115,234,246,221,197,270,225,166,126,270,351,337,326,374,370,355,354,319,204,195,133,560,559,702,685,586,562,937,892,627,284,323,8,8,8,8,8,8,8,8,0,8,8,8,15,510,510,29967,29967,29967,29968,29968,29970,29972,29974,29975,29976,29976,29973,29972,8,8,8,8,8,8,0,0,0,0,0,0,0,0,0,0,0,0,0,8,0,8,8,29981,29982,29981,29982,29982,29983,29983,29984]} 1. e4 {[%emt 0:00:10]} e5 {[%emt 0:00:09]} 2. Nf3 {[%emt 0:00:35]} Nc6 {[%emt 0:00:08]} 3. Nc3 {[%emt 0:00:42]} Nf6 {[%emt 0:00:36]} 4. Bb5 {[%emt 0:00:26]} Bb4 {[%emt 0:01:50]} 5. O-O {[%emt 0:00:59]} O-O {[%emt 0:00:10]} 6. d3 {[%emt 0:00:01]} d6 {[%emt 0:00:32]} 7. Bg5 {[%emt 0:04:24]} Bxc3 {[%emt 0:01:30]} 8. bxc3 {[%emt 0:00:43]} h6 {[%emt 0:00:31]} 9. Bh4 {[%emt 0:02:17]} Nb8 {[%emt 0:03:41] C49: Four Knights: 4 Bb5 Bb4.} 10. d4 {[%emt 0:15:51]} Qe7 {[%emt 0:00:46]} 11. Re1 {[%emt 0:02:31] [#]} a6 $146 {[%emt 0:01:30] White has an edge.} ({Predecessor:} 11... c6 12. Bd3 Bg4 13. h3 Bh5 14. Rb1 b5 15. a4 a6 16. g4 Bg6 17. Qc1 Nbd7 18. Qa3 {½-½ (68) Willow,J (2360)-De Silva,L (2193) Chess.com INT 2022}) 12. Bf1 {[%emt 0:01:58]} Nbd7 {[%emt 0:21:10]} 13. Nd2 {[%emt 0:07:43]} Rd8 {[%emt 0:04:52]} 14. Nc4 {[%emt 0:05:22]} Nf8 {[%emt 0:04:28]} 15. Ne3 {[%emt 0:01:53]} g5 {[%emt 0:01:08]} 16. Bg3 {[%emt 0:00:08]} Ng6 {[%emt 0:00:34]} (16... Nxe4 $2 17. Nd5 Qe6 18. Nxc7 $18) 17. f3 {[%emt 0:07:31]} Be6 {[%emt 0:03:21]} 18. c4 exd4 {[%emt 0:07:04]} 19. Qxd4 {[%emt 0:03:45]} Nd7 {[%emt 0:00:39]} 20. Rad1 {[%emt 0:03:44]} Nde5 {[%emt 0:04:31]} 21. Nf5 {[%emt 0:04:19]} Qf6 {[%emt 0:05:20]} 22. Nxh6+ {[%emt 0:01:18]} Kg7 {[%emt 0:00:06]} 23. Nf5+ {[%emt 0:00:16]} Bxf5 {[%emt 0:00:15]} 24. exf5 {[%emt 0:00:02]} Qxf5 {[%emt 0:01:22]} 25. c5 {[%emt 0:07:10] [#]} (25. Bd3 $14 Qf6 26. Be4) 25... Qf6 $2 {[%emt 0:11:03]} (25... dxc5 $1 $15 {stays ahead.} 26. Bd3 (26. Qc3 f6) 26... Rxd4 27. Bxf5 Rxd1 28. Rxd1 Nf4) 26. Qc3 {[%emt 0:03:26]} Nf4 {[%emt 0:05:04]} 27. Re4 {[%emt 0:10:01]} (27. Rb1 $16) 27... Nfg6 {[%emt 0:08:19]} (27... Nd7 $11 {remains equal.} 28. Qxf6+ Nxf6) 28. Rd5 {[%emt 0:06:26]} Kg8 {[%emt 0:04:45]} (28... Ne7 $142 29. Rd1 (29. Bxe5 dxe5 30. Rxd8 Rxd8 $11) 29... N7g6) 29. Qd2 {[%emt 0:01:49]} Rac8 {[%emt 0:05:20]} 30. Red4 {[%emt 0:03:07]} Nc6 {[%emt 0:00:20]} (30... Rd7 $16) 31. Rg4 $18 {[%emt 0:00:13]} dxc5 {[%emt 0:00:11]} 32. Rgxg5 {[%emt 0:00:41]} (32. Qxg5 $18 Qxg5 33. Rdxg5) 32... Nb4 {[%emt 0:01:18]} 33. Rd7 {[%emt 0:03:34]} Rxd7 {[%emt 0:02:06]} 34. Qxd7 {[%emt 0:00:02]} Qd4+ {[%emt 0:00:31]} (34... Rd8 $16 35. Qg4 Rd4) 35. Qxd4 {[%emt 0:00:05]} cxd4 {[%emt 0:00:02]} 36. h4 {[%emt 0:00:39][%cal Bh2h4,Bh4h5][%mdl 32] aiming for h5.} Kh7 {[%emt 0:01:48]} (36... c5 {was worth a try.} 37. h5 c4) 37. h5 {[%emt 0:00:44]} Ne7 {[%emt 0:00:01]} 38. Bc4 {[%emt 0:02:37]} Rg8 {[%emt 0:00:47]} (38... f6 $16 {was necessary.} 39. Rg4 Rd8) 39. Bh4 {[%emt 0:01:03]} Rxg5 {[%emt 0:01:07]} 40. Bxg5 {[%emt 0:00:02] This bishop pair is nice.} Nbd5 {[%emt 0:00:32]} 41. Bxe7 {[%emt 0:30:58]} Nxe7 {[%emt 0:30:06]} 42. Bxf7 {[%emt 0:00:04][%mdl 4096] Endgame KB-KN} Kg7 {[%emt 0:00:06]} 43. Bc4 {[%emt 0:01:34]} b5 {[%emt 0:00:06]} 44. Bd3 {[%emt 0:00:00]} (44. Be6 $18) 44... Kh6 $2 {[%emt 0:00:00][%mdl 8192]} (44... Nd5 $16 {is a better chance.}) 45. g4 {[%emt 0:00:00]} Nd5 {[%emt 0:00:00]} 46. Kf2 {[%emt 0:00:00]} c5 {[%emt 0:00:00]} 47. Be4 {[%emt 0:00:00]} Nc3 {[%emt 0:00:00]} 48. Bg6 {[%emt 0:00:00]} Nd5 {[%emt 0:00:00]} 49. Bf7 {[%emt 0:00:00]} (49. Kg3 $142 {f4 is the strong threat.} c4 50. f4) 49... Ne3 {[%emt 0:00:00]} 50. Be6 {[%emt 0:00:00]} ({Better is} 50. Ke2 $18) 50... Nxc2 $11 {[%emt 0:00:00]} 51. f4 {[%emt 0:00:00] Strongly threatening g5+.} Ne3 $1 {[%emt 0:00:00]} 52. Kf3 {[%emt 0:00:00]} c4 {[%emt 0:00:00]} 53. g5+ Kxh5 {[%emt 0:00:00]} 54. Bf7+ {[%emt 0:03:12]} Kh4 {[%emt 0:00:00]} 55. g6 {White wants to mate with g7.} Nf5 {[%emt 0:00:50] And now ...d3 would win.} 56. Ke4 {[%emt 0:01:19][%mdl 64] Deflection} Ne7 {[%mdl 8192]} (56... Ng7 $1 $11 57. Kxd4 Kh5) 57. Kxd4 $18 {[%emt 0:01:36] Hoping for Ke4.} Kg4 {[%emt 0:01:14]} (57... a5 $18 58. Ke4 c3) 58. Ke4 {[%emt 0:00:59]} c3 {[%emt 0:00:13]} 59. Kd3 {[%emt 0:00:04]} Kxf4 {[%emt 0:00:26]} 60. g7 {[%emt 0:00:08]} b4 {[%emt 0:00:29]} 61. g8=Q {[%emt 0:00:17]} Nxg8 {[%emt 0:00:01]} 62. Bxg8 {[%emt 0:00:01] KB-K3P} Kf3 {[%emt 0:01:21]} 63. Bb3 {[%emt 0:00:21]} Kf2 {[%emt 0:00:23]} 64. Kc4 $2 {[%emt 0:01:54]} (64. Ba4 {mates} Kf1 65. Ke3 Kg2 66. Ke2 Kg3 67. Bc2 Kf4 68. Kd3 Ke5 69. Kc4) 64... Ke3 {[%emt 0:00:05]} 65. Kxb4 $11 {[%emt 0:01:31] KB-KPP} Kd2 $1 {[%emt 0:00:11]} 66. Ka5 {[%emt 0:00:04]} Kc1 $1 {[%emt 0:00:10]} 67. a4 {[%emt 0:00:09]} Kb2 {[%emt 0:00:04]} 68. Bd1 {[%emt 0:00:01]} Kc1 {[%emt 0:00:11]} 69. Bh5 {[%emt 0:00:17]} Kb2 $1 {[%emt 0:00:09] ( -> ...c2)} (69... c2 {is a self mate.} 70. Bg6 Kb2 {[#]} 71. Bxc2 $1 {[%mdl 512]} Kxc2 72. Kxa6 Kd2 73. a5 Ke3 74. Kb6) 70. Bg6 {[%emt 0:00:06]} Kb3 {[%emt 0:00:18]} 71. Bf5 {[%emt 0:00:36]} Ka3 {[%emt 0:00:05]} 72. Bc2 {[%emt 0:01:13]} Kb2 {[%emt 0:00:08]} 73. Bd1 {[%emt 0:00:15]} Kc1 {[%emt 0:00:28]} 74. Bb3 {[%emt 0:00:18]} Kb2 {[%emt 0:00:14]} 75. Kb4 {[%emt 0:00:06] Intending a5 and mate.} a5+ $2 {[%emt 0:00:10][%mdl 8192]} (75... c2 $11 76. Bxc2 Kxc2) 76. Kc4 {[%emt 0:00:02] White mates.} Ka3 {[%emt 0:00:05]} 77. Bd1 {[%emt 0:00:10]} Kb2 {[%emt 0:00:06]} 78. Kb5 {[%emt 0:00:06]} Kc1 {[%emt 0:00:13]} 79. Bh5 {[%emt 0:00:04] Weighted Error Value: White=0.32/Black=0.55} 1-0

[Event "Mitropa Cup Open 2022"]
[Site "Corte"]
[Date "2022.05.05"]
[Round "6.6"]
[White "Humeau, Cyril"]
[Black "Gaehwiler, Gabriel"]
[Result "1/2-1/2"]
[ECO "B22"]
[WhiteElo "2290"]
[BlackElo "2418"]
[Annotator "TA"]
[PlyCount "51"]
[EventDate "2022.04.30"]
[EventType "team-tourn"]
[EventCountry "FRA"]
[SourceTitle "playchess.com"]
[Source "ChessBase"]
[SourceQuality "1"]
[WhiteTeam "France"]
[BlackTeam "Switzerland"]
[WhiteTeamCountry "FRA"]
[BlackTeamCountry "SUI"]
[TimeControl "40/5400+30:1800+30"]

{[%evp 14,51,37,13,13,-5,29,20,23,6,23,18,26,0,7,-19,0,0,80,0,0,0,0,0,46,8,14,22,31,0,43,0,44,31,39,0,38,0,34,0]} 1. e4 {[%emt 0:00:03]} c5 {[%emt 0:00:10]} 2. c3 {[%emt 0:00:04]} d5 {[%emt 0:00:13]} 3. exd5 {[%emt 0:00:05]} Qxd5 {[%emt 0:00:07]} 4. d4 {[%emt 0:00:06]} g6 {[%emt 0:00:45]} 5. Nf3 {[%emt 0:01:25]} Bg7 {[%emt 0:01:34]} 6. Na3 {[%emt 0:01:31][%cal Bb1a3,Ba3b5,Bb5d4,Bd4b3][%mdl 32]} cxd4 {[%emt 0:07:02]} 7. Nb5 {[%emt 0:04:59]} Na6 {[%emt 0:05:20]} 8. Be3 {[%emt 0:08:37][%cal Re3d4] Active counter play!} Nf6 {[%emt 0:26:45] B06: Modern Defence.} 9. Nbxd4 {[%emt 0:03:00] [#]} Ng4 $146 {[%emt 0:01:42]} ({Predecessor:} 9... O-O 10. Bxa6 bxa6 11. O-O Bb7 12. Nb3 Rac8 13. Qxd5 Nxd5 14. Bxa7 e5 15. Rfe1 e4 {0-1 (55) Petrova,I (2127)-Wieczorek,O (2500) Chess.com INT 2022}) 10. Bb5+ {[%emt 0:01:37]} Bd7 {[%emt 0:00:31] The position is equal.} 11. Qb3 {[%emt 0:04:50]} Nxe3 {[%emt 0:06:05]} 12. fxe3 {[%emt 0:00:25]} Qxb3 {[%emt 0:01:00]} 13. Bxd7+ {[%emt 0:02:08]} Kxd7 {[%emt 0:00:03]} 14. Nxb3 {[%emt 0:00:27]} e5 {[%emt 0:05:07]} 15. Ke2 {[%emt 0:00:14]} e4 {[%emt 0:09:10]} (15... Ke7 $11 {remains equal.}) 16. Nfd4 {[%emt 0:01:41]} (16. Rad1+ $16 Ke7 17. Nfd2) 16... f5 $11 {[%emt 0:00:56]} 17. Rad1 {[%emt 0:00:32] [#] aiming for Nxf5+.} Ke7 {[%emt 0:00:26]} 18. Nb5 {[%emt 0:00:34]} Rhc8 {[%emt 0:02:39]} (18... Be5 $11 {is superior.}) 19. Rd5 {[%emt 0:00:37]} Nc7 {[%emt 0:14:25]} (19... Rd8 $5 {[%cal Rd8d5]} 20. Rhd1 Rxd5 21. Rxd5 Ke6 22. Rd6+ Ke7 $11) 20. Nxc7 {[%emt 0:01:04]} Rxc7 {[%emt 0:00:03]} 21. Rhd1 {[%emt 0:00:12][%cal Og2g4]} (21. g4 $5 {[%cal Rg4f5]}) 21... Rac8 {[%emt 0:00:27]} 22. h3 {[%emt 0:00:29]} (22. g4 $5 {[%cal Rg4f5]}) 22... Ke6 {[%emt 0:01:27]} 23. Rd6+ {[%emt 0:06:10]} Ke7 {[%emt 0:00:08]} 24. R6d5 {[%emt 0:00:48]} Ke6 {[%emt 0:00:29]} 25. Rd6+ {[%emt 0:00:53]} Ke7 {[%emt 0:00:19]} 26. R6d5 {Weighted Error Value: White=0.21 (precise) /Black=0.22 (precise)} 1/2-1/2

[Event "Mitropa Cup Open 2022"]
[Site "Corte"]
[Date "2022.05.05"]
[Round "6.7"]
[White "Lodici, Lorenzo"]
[Black "Boyer, Mahel"]
[Result "1-0"]
[ECO "E40"]
[WhiteElo "2549"]
[BlackElo "2431"]
[Annotator "TA"]
[PlyCount "79"]
[EventDate "2022.04.30"]
[EventType "team-tourn"]
[EventCountry "FRA"]
[SourceTitle "playchess.com"]
[Source "ChessBase"]
[SourceQuality "1"]
[WhiteTeam "Italy"]
[BlackTeam "France"]
[WhiteTeamCountry "ITA"]
[BlackTeamCountry "FRA"]
[TimeControl "40/5400+30:1800+30"]

{[%evp 26,79,26,22,31,18,70,60,84,73,129,137,115,117,120,114,110,56,391,418,404,408,413,362,537,524,504,464,589,564,745,771,694,352,1140,1098,1291,1226,2523,2349,2437,2111,29986,29987,29987,29988,29989,29990,29990,29990,29990,29991,29991,29992,29993,29994]} 1. d4 {[%emt 0:00:05]} Nf6 {[%emt 0:00:55]} 2. c4 {[%emt 0:04:48]} e6 {[%emt 0:00:31]} 3. Nc3 {[%emt 0:01:46]} Bb4 {[%emt 0:00:56]} 4. e3 {[%emt 0:06:08]} d5 {[%emt 0:06:08]} 5. a3 {[%emt 0:02:33]} Bxc3+ {[%emt 0:02:55]} 6. bxc3 {[%emt 0:00:02]} O-O {[%emt 0:00:49]} 7. cxd5 {[%emt 0:00:06]} exd5 {[%emt 0:00:01]} 8. Bd3 {[%emt 0:00:06]} b6 {[%emt 0:01:32]} 9. Ne2 {[%emt 0:00:26]} c5 {[%emt 0:00:43]} 10. O-O {[%emt 0:00:40]} Ba6 {[%emt 0:00:07]} 11. f3 {[%emt 0:00:32]} Re8 {[%emt 0:01:16]} 12. Ng3 {[%emt 0:00:12]} Bxd3 {[%emt 0:01:10]} 13. Qxd3 {[%emt 0:00:02]} Nc6 {[%emt 0:00:33]} 14. Bb2 {[%emt 0:00:06]} h5 {[%emt 0:13:44] E49: Nimzo-Indian: Rubinstein: 5 Bd3 d5 6 a3 Bxc3+ 7 bxc3.} 15. Rae1 {[%emt 0:00:41]} Rc8 {[%emt 0:12:23]} ({Black should try} 15... h4 $11 16. Nf5 c4) 16. e4 $1 $14 cxd4 {White is slightly better.} 17. cxd4 {[%emt 0:12:35] Black must now prevent e5.} h4 {[%emt 0:01:53]} (17... g6 $142) 18. Nf5 $16 {[%emt 0:02:49] [#] aiming for e5.} Nh5 $146 {[%emt 0:00:04] [#]} ({Predecessor:} 18... g6 19. Nxh4 dxe4 20. fxe4 Ne5 21. Qg3 Nc4 22. Nxg6 Nxb2 23. Ne7+ Kf8 24. Nxc8 Qxd4+ 25. Kh1 Nxe4 26. Qf4 Qc4 27. Nd6 Nxd6 28. Qxd6+ Kg7 29. Qf6+ Kh7 30. Rxe8 {1-0 (30) Golovlev,N (2321)-Kurochkin,V (2152) Ilichevsk 2007}) 19. Bc1 $1 {[%emt 0:04:41] Against Nf4. White is more active.} g6 {[%emt 0:22:56]} 20. Nh6+ {[%emt 0:02:17]} Kg7 {[%emt 0:00:24]} 21. e5 (21. Ng4 $16) 21... f5 $2 {[%emt 0:21:42][%mdl 8192] [#] This costs Black the game.} (21... Rh8 $14) 22. Nxf5+ $1 $18 {[%emt 0:15:50][%mdl 512]} gxf5 {[%emt 0:01:24]} 23. Qxf5 {[%emt 0:00:03]} Rh8 {[%emt 0:00:10]} 24. Bg5 {[%emt 0:06:13] Chess con chili.} Rf8 {[%emt 0:00:28]} (24... Nxd4 $2 25. Qg4 Qe8 26. Bf6+ Kf8 27. Bxh8 $18) (24... Qc7 $142 25. Qg4 (25. Bxh4 Qf7 $18) 25... Kf8) 25. Qg4 {[%emt 0:07:32]} Qe8 {[%emt 0:01:56]} 26. f4 {[%emt 0:04:13]} Kh7 27. f5 ({Inferior is} 27. Qd1 Ng7 $11) 27... Rg8 {[%emt 0:00:55]} 28. Qxh4 {[%emt 0:12:22]} (28. f6 Qg6 29. Qd7+ Kh8 $14) 28... Nxd4 {[%emt 0:00:43]} 29. Re3 {[%emt 0:03:55]} (29. Qxd4 Rxg5 30. Qd3 (30. Qxd5 $2 Rc2 $19) 30... Kh6 $14) 29... Rc3 $2 {[%emt 0:03:33]} (29... Rc1 30. Rxc1 Nxf5 31. Rc7+ Rg7 32. Rxg7+ Kxg7) 30. Qxd4 {[%emt 0:04:46]} Rc4 {[%emt 0:00:08]} 31. Qxd5 {[%emt 0:00:05]} Rc5 {[%emt 0:00:02]} 32. Qe4 {[%emt 0:00:55] Hoping for f6+.} Rxg5 {[%emt 0:00:09]} 33. f6+ {[%emt 0:00:22][%cal Bf5f6,Bf6f7][%mdl 32]} Rg6 {[%emt 0:05:12]} 34. f7 {[%emt 0:00:46] White mates.} Qf8 {[%emt 0:00:04]} 35. e6 {[%emt 0:00:33][%cal Be5e6,Be6e7][%mdl 32]} Rcg5 {[%emt 0:00:01]} 36. e7 {[%emt 0:02:45]} Rxg2+ {[%emt 0:00:12]} 37. Qxg2 {[%emt 0:00:49]} Rxg2+ {[%emt 0:00:07]} 38. Kxg2 {[%emt 0:00:04]} Qa8+ {[%emt 0:01:03]} 39. Kg1 {[%emt 0:00:15]} Nf4 {[%emt 0:01:57]} 40. Rxf4 {[%emt 0:00:06] Weighted Error Value: White=0.20 (precise) /Black=0.76} 1-0

[Event "Mitropa Cup Open 2022"]
[Site "Corte"]
[Date "2022.05.05"]
[Round "6.7"]
[White "Gallagher, Joseph G."]
[Black "Roux, Baptiste"]
[Result "1-0"]
[ECO "B40"]
[WhiteElo "2441"]
[BlackElo "2072"]
[Annotator "TA"]
[PlyCount "83"]
[EventDate "2022.04.30"]
[EventType "team-tourn"]
[EventCountry "FRA"]
[SourceTitle "playchess.com"]
[Source "ChessBase"]
[SourceQuality "1"]
[WhiteTeam "Switzerland"]
[BlackTeam "France"]
[WhiteTeamCountry "SUI"]
[BlackTeamCountry "FRA"]
[TimeControl "40/5400+30:1800+30"]

{[%evp 9,83,22,22,37,31,6,24,35,39,35,45,33,66,63,57,34,37,34,14,32,45,26,31,-29,-23,-57,0,0,0,-2,-3,-94,-72,-75,-66,-60,-58,-120,-127,-126,-83,-87,-53,-60,-17,-42,0,0,0,-16,64,67,135,92,156,121,112,20,161,176,813,802,411,1982,1733,1527,1224,986,29989,29990,29991,29992,29992,29993,29993,29992]} 1. e4 {[%emt 0:00:03]} c5 {[%emt 0:00:06]} 2. Nf3 {[%emt 0:00:12]} e6 {[%emt 0:00:21]} 3. c4 {[%emt 0:00:57]} Nc6 {[%emt 0:01:50]} 4. Nc3 {[%emt 0:00:16]} b6 {[%emt 0:00:56]} 5. d4 {[%emt 0:03:28]} cxd4 {[%emt 0:00:06]} 6. Nxd4 {[%emt 0:00:05] B40: Sicilian: 2...e6, Unusual lines.} Bb7 {[%emt 0:00:10]} 7. Nxc6 {[%emt 0:06:44]} Bxc6 {[%emt 0:15:42]} 8. Bd3 {[%emt 0:00:48] White has an edge.} Qb8 {[%emt 0:06:09]} 9. O-O {[%emt 0:03:40] [#]} Bd6 $146 {[%emt 0:11:20]} ({Predecessor:} 9... Nf6 10. Qe2 Bd6 11. f4 h5 12. e5 Bc5+ 13. Be3 Bxe3+ 14. Qxe3 Ng4 15. Qd4 Qd8 {0-1 (50) Rocha,S (2400)-Philippe,C (2374) Nancy 2005}) 10. f4 {[%emt 0:05:45]} Bc5+ {[%emt 0:05:55]} 11. Kh1 {[%emt 0:00:20]} Ne7 {[%emt 0:07:47]} 12. Bc2 {[%emt 0:18:09]} O-O {[%emt 0:06:43]} 13. a3 {[%emt 0:04:06]} Ng6 {[%emt 0:08:31]} 14. b4 {[%emt 0:04:46]} Bd6 {[%emt 0:09:25]} 15. e5 {[%emt 0:02:02]} Be7 {[%emt 0:00:32]} 16. Be3 {[%emt 0:09:16]} (16. Ne4 $14) 16... d6 $11 {[%emt 0:02:36]} 17. Qh5 {[%emt 0:18:33]} Qc7 {[%emt 0:09:49]} (17... Qb7 $15 18. Qe2 Nh4) 18. exd6 {[%emt 0:03:42]} Bxd6 {[%emt 0:00:18]} 19. Rac1 {[%emt 0:02:41]} Rad8 {[%emt 0:02:31]} 20. Ne4 {[%emt 0:01:25]} (20. Qh3 $11) 20... Bxe4 {[%emt 0:01:49]} (20... Qb7 {is interesting.} 21. Ng5 Bxg2+ 22. Kg1 h6) 21. Bxe4 {[%emt 0:00:10]} f5 {[%emt 0:00:44]} 22. Bb1 {[%emt 0:06:30]} Bxf4 {[%emt 0:04:38]} 23. Bxf4 {[%emt 0:00:06]} (23. Qh3 $15) 23... Nxf4 $17 {[%emt 0:00:01]} 24. Qf3 {[%emt 0:00:20]} Rd4 {[%emt 0:01:18]} 25. g3 {[%emt 0:03:41]} Ng6 {[%emt 0:00:38] ...Ne5 is the strong threat.} 26. c5 {[%emt 0:00:08]} Kh8 {[%emt 0:02:08]} (26... Ne5 {feels hotter.} 27. Qe2 g6 28. Rce1 Nf7) 27. Rfe1 {[%emt 0:02:25][%cal Bf1e1,Be1e5,Be5c5][%mdl 32]} (27. Qe3 {seems wilder.} Qc6+ 28. Kg1 Rfd8 29. b5) 27... e5 {[%emt 0:00:50]} 28. Bxf5 {[%emt 0:01:17]} Ne7 {[%emt 0:00:15]} 29. cxb6 {[%emt 0:00:05]} Qxb6 {[%emt 0:00:19]} (29... Qb8 $1 $11 30. bxa7 Qxa7 31. Rxe5 g6) 30. Rxe5 $14 {[%emt 0:00:12]} Qf6 {[%emt 0:01:16]} ({Black should play} 30... Qd8 $14) 31. Rce1 {[%emt 0:00:06] 0x0.00272e3ce087dp-1022s more active pieces.} Ng6 {[%emt 0:00:38]} (31... Nxf5 $2 {[#]} 32. Rxf5 $1 {[%mdl 512]} Qxf5 33. Qxf5 $18) (31... h6 $142 32. Rxe7 Qxf5 33. Qxf5 Rxf5) 32. Rc5 $36 {[%emt 0:03:12][%mdl 2048] White is on the roll.} Rd2 {[%emt 0:00:17]} 33. Re2 {[%emt 0:01:05]} (33. Rf1 $16) 33... Rd1+ {[%emt 0:00:01] Loses the game.} (33... Qa1+ $11 {and Black has nothing to worry.} 34. Kg2 Rxe2+ 35. Qxe2 Qxa3) 34. Kg2 $18 {[%emt 0:00:05]} Qd4 $2 {[%emt 0:00:16] [#]} (34... Rd7 35. Rf2 Rdf7) 35. Bxg6 $1 {[%emt 0:00:23][%cal Rf3f8]} Rg1+ {[%emt 0:01:24]} (35... Qd8 36. Rf5) 36. Kh3 {[%emt 0:00:04][%cal Rf3f8]} Qd7+ {[%emt 0:00:23]} 37. Bf5 {[%emt 0:00:06]} Qd6 {[%emt 0:00:27]} 38. Re6 {[%emt 0:00:39]} Qd2 {[%emt 0:00:13] [#]} 39. Be4 $1 {[%emt 0:00:45][%cal Rf3f8] White mates.} Qd8 {[%emt 0:01:03]} (39... Qg2+ 40. Qxg2) 40. Qh5 {[%emt 0:00:40][%csl Ge4][%cal Rh5h7]} g6 {[%emt 0:00:01]} 41. Qe5+ {[%emt 0:30:36]} Kg8 {[%emt 0:30:11]} 42. Re7 {[%emt 0:00:25] Weighted Error Value: White=0.25 (precise) /Black=0.44} 1-0